{"text_format":"3","workbook":"xlsx","n_sheets":2,"sheets":["Účtovná faktúra","Nastavenie spoločnosti"],"not_rendered":{"images":1,"defined_names":27},"read":"whole","date_system":"1900"}

{"sheet":"Účtovná faktúra","index":0,"n_rows":35,"n_cols":7,"rows_kept":35,"merged":[[1,1,1,2],[1,3,2,4],[1,6,2,6],[3,3,3,4],[4,3,4,4],[5,3,5,4],[23,1,23,3],[24,1,24,3],[25,1,25,3],[26,1,26,3],[34,1,34,4]]}
[null,"FAKTÚRA","0005"]
[null,{"$f":"TODAY()","v":"2018-07-13"},null,{"$f":"CelkováČiastkaFaktúry","v":79.65},null," ","Nastavenie spoločnosti"]
[null,"SPLATNOSŤ do:",{"$f":"TODAY()+15","v":"2018-07-28"},null,null," "]
[null,"LUCIA KRÁLIKOVÁ",null,"ADVENTURE WORKS"]
[null,"Fabrikam, Inc.",null,"23456 Javorová ulica"]
[null,"Prvá ulica 1234",null,"09876 Pezinok"]
[null,"12345 Šamorín"]
[null,"MNOŽSTVO","PODROBNOSTI","JEDNOTKOVÁ CENA","SÚČET RIADKA"]
[null,2,"Miniaplikácie",14.95,{"$f":"IFERROR(PodrobnostiFaktúry[[#This Row],[JEDNOTKOVÁ CENA]]*PodrobnostiFaktúry[[#This Row],[MNOŽSTVO]],\"\")","v":{"v":29.9,"d":"29.90"}}]
[null,5,"Krúžky",9.95,{"$f":"IFERROR(PodrobnostiFaktúry[[#This Row],[JEDNOTKOVÁ CENA]]*PodrobnostiFaktúry[[#This Row],[MNOŽSTVO]],\"\")","v":49.75}]
[{"$nulls":4},{"$f":"IFERROR(PodrobnostiFaktúry[[#This Row],[JEDNOTKOVÁ CENA]]*PodrobnostiFaktúry[[#This Row],[MNOŽSTVO]],\"\")","v":0}]
[{"$nulls":4},{"$f":"IFERROR(PodrobnostiFaktúry[[#This Row],[JEDNOTKOVÁ CENA]]*PodrobnostiFaktúry[[#This Row],[MNOŽSTVO]],\"\")","v":0}]
[{"$nulls":4},{"$f":"IFERROR(PodrobnostiFaktúry[[#This Row],[JEDNOTKOVÁ CENA]]*PodrobnostiFaktúry[[#This Row],[MNOŽSTVO]],\"\")","v":0}]
[{"$nulls":4},{"$f":"IFERROR(PodrobnostiFaktúry[[#This Row],[JEDNOTKOVÁ CENA]]*PodrobnostiFaktúry[[#This Row],[MNOŽSTVO]],\"\")","v":0}]
[{"$nulls":4},{"$f":"IFERROR(PodrobnostiFaktúry[[#This Row],[JEDNOTKOVÁ CENA]]*PodrobnostiFaktúry[[#This Row],[MNOŽSTVO]],\"\")","v":0}]
[{"$nulls":4},{"$f":"IFERROR(PodrobnostiFaktúry[[#This Row],[JEDNOTKOVÁ CENA]]*PodrobnostiFaktúry[[#This Row],[MNOŽSTVO]],\"\")","v":0}]
[{"$nulls":4},{"$f":"IFERROR(PodrobnostiFaktúry[[#This Row],[JEDNOTKOVÁ CENA]]*PodrobnostiFaktúry[[#This Row],[MNOŽSTVO]],\"\")","v":0}]
[{"$nulls":4},{"$f":"IFERROR(PodrobnostiFaktúry[[#This Row],[JEDNOTKOVÁ CENA]]*PodrobnostiFaktúry[[#This Row],[MNOŽSTVO]],\"\")","v":0}]
[{"$nulls":4},{"$f":"IFERROR(PodrobnostiFaktúry[[#This Row],[JEDNOTKOVÁ CENA]]*PodrobnostiFaktúry[[#This Row],[MNOŽSTVO]],\"\")","v":0}]
[{"$nulls":4},{"$f":"IFERROR(PodrobnostiFaktúry[[#This Row],[JEDNOTKOVÁ CENA]]*PodrobnostiFaktúry[[#This Row],[MNOŽSTVO]],\"\")","v":0}]
[{"$nulls":4},{"$f":"IFERROR(PodrobnostiFaktúry[[#This Row],[JEDNOTKOVÁ CENA]]*PodrobnostiFaktúry[[#This Row],[MNOŽSTVO]],\"\")","v":0}]
[{"$nulls":4},{"$f":"IFERROR(PodrobnostiFaktúry[[#This Row],[JEDNOTKOVÁ CENA]]*PodrobnostiFaktúry[[#This Row],[MNOŽSTVO]],\"\")","v":0}]
[{"$nulls":4},{"$f":"IFERROR(PodrobnostiFaktúry[[#This Row],[JEDNOTKOVÁ CENA]]*PodrobnostiFaktúry[[#This Row],[MNOŽSTVO]],\"\")","v":0}]
[null,"Zľava"]
[null,"Čistá suma",null,null,{"$f":"SUM(PodrobnostiFaktúry[SÚČET RIADKA])-E24","v":{"v":79.65,"d":"79.65 €"}}]
[null,"Daň"]
[null,{"$f":"\"SPOLU \" & REPT(NastavenieSpoločnosti_SkratkaVašejMany,LEN(NastavenieSpoločnosti_SkratkaVašejMany)>0)","v":"SPOLU EUR"},null,null,{"$f":"IFERROR(E25+E26, \"\")","v":{"v":79.65,"d":"79.65 €"}}]
[null,"PODROBNOSTI O PLATBE",null,null,"ĎALŠIE INFORMÁCIE"]
[null,"Meno príjemcu:",{"$f":" NastavenieSpoločnosti_NázovPríjmajúcejBanky","v":"Adventure Works"},null,{"$f":"IFERROR(NastavenieSpoločnosti_VašeMeno,\"\")","v":""}]
[null,"Názov banky:",{"$f":"NastavenieSpoločnosti_NázovBanky","v":"Woodgrove Bank"},null,{"$f":"IFERROR(\"Telefón: \" & NastavenieSpoločnosti_VášTelefón,\"\")","v":"Telefón: 999-555-015"}]
[null,"Adresa banky:",{"$f":"NastavenieSpoločnosti_AdresaBanky","v":"Hlavná ulica 234, 09876 Pezinok"},null,{"$f":"IFERROR(\"Fax: \" & NastavenieSpoločnosti_VášFax,\"\")","v":"Fax: 999-555-016"}]
[null,"Číslo účtu:",{"$f":"NastavenieSpoločnosti_BankovýÚčet","v":1234567},null,{"$f":"IFERROR(NastavenieSpoločnosti_VašaAdresaURL,\"\")","v":"Adventure-Works.com"}]
[null,"Smerové číslo (kód SWIFT):",{"$f":"NastavenieSpoločnosti_SmerovýKód","v":9876543210},null,{"$f":"IFERROR(NastavenieSpoločnosti_VašaEmailováAdresa,\"\")","v":"Accounting@Adventure-Works.com"}]
[null,"Referencia platby:",{"$f":"ZobrazenieČíslaFaktúry","v":"0005"},null,{"$f":"IFERROR(IF(LEN(Client_PO),\"Contract/PO: \" & Client_PO,\"\"),\"\")","v":""}]
[null,{"$f":"UPPER(\"Platbu je potrebné uskutočniť bankovým prevodom alebo šekom vystaveným na spoločnosť \" & NastavenieSpoločnosti_PríjemcaŠeku& \".\")","v":"PLATBU JE POTREBNÉ USKUTOČNIŤ BANKOVÝM PREVODOM ALEBO ŠEKOM VYSTAVENÝM NA SPOLOČNOSŤ ADVENTURE WORKS."}]

{"sheet":"Nastavenie spoločnosti","index":1,"n_rows":20,"n_cols":5,"rows_kept":20}
[null,"NASTAVENIE SPOLOČNOSTI"]
[null,"ÚDAJE FAKTURÚJECEJ SPOLOČNOSTI","HODNOTA",null,"Účtovná faktúra"]
[null,"Meno","Jakub Varga"]
[null,"Názov spoločnosti","ADVENTURE WORKS"]
[null,"Adresa, riadok 1","23456 Javorová ulica"]
[null,"Adresa, riadok 2","09876 Pezinok"]
[null,"Adresa, riadok 3"]
[null,"Adresa, riadok 4"]
[null,"Adresa, riadok 5"]
[null,"Telefón","999-555-015"]
[null,"Fax","999-555-016"]
[null,"Webová lokalita","Adventure-Works.com"]
[null,"E-mail","Accounting@Adventure-Works.com"]
[null,"Skratka meny","EUR"]
[null,"Meno príjemcu pre bankový prevod","Adventure Works"]
[null,"Názov banky","Woodgrove Bank"]
[null,"Adresa banky","Hlavná ulica 234, 09876 Pezinok"]
[null,"Číslo účtu",1234567]
[null,"Smerové číslo (kód SWIFT)",9876543210]
[null,"Šeky vystaviť v prospech","Adventure Works"]